bitfinex/quotes_ETHUSD_20260108
["timestamp","ask_amount","ask_price","bid_price","bid_amount"]
[1767896449417,3.19726827,3127.7,3127.1,0.93990084]
[1767896450291,6.39453654,3127.7,3127.1,0.93990084]
[1767896451537,1.60328206,3127.7,3127.1,0.001]
[1767896451699,0.96382841,3127.6,3127.1,0.001]
[1767896452103,0.96382841,3127.6,3126.5,0.93890084]
[1767896453523,6.39488408,3127.5,3126.6,0.93890084]
[1767896455999,6.39467962,3127.6,3126.6,0.93890084]
[1767896456214,0.73765131,3127.5,3126.7,0.93890084]
[1767896456717,0.73765131,3127.5,3126.9,0.001]
[1767896456918,0.002,3127.4,3126.9,0.001]
[1767896457102,0.002,3127.4,3126.9,0.93990084]
[1767896457497,0.002,3127.7,3127.1,0.93890084]
[1767896457899,0.002,3127.7,3127.3,0.93890084]
[1767896458732,0.002,3127.7,3127.4,0.93890084]
[1767896459057,0.002,3127.7,3127.5,0.93890084]
[1767896459237,0.839,3128.4,3127.3,3.61997]
[1767896459238,4.03555525,3128.4,3127.7,0.93890084]
[1767896459523,6.39316626,3128.4,3127.9,0.93890084]
[1767896459725,6.39316626,3128.4,3127.7,0.93890084]
[1767896460103,3.19655525,3128.4,3127.7,0.93890084]
[1767896460426,6.39316626,3128.4,3127.7,0.93890084]
[1767896460634,6.39243136,3128.7,3127.7,0.93890084]
[1767896460804,6.39243136,3128.7,3127.8,0.93890084]
[1767896461197,0.96382841,3128.6,3127.3,0.42233251]
[1767896461529,0.96382841,3128.6,3127.2,0.93890084]
[1767896462639,0.98501621,3128.4,3126.9,0.08774281]
[1767896462867,0.98501621,3128.2,3126.9,0.001]
[1767896463928,0.98501621,3128.2,3126.9,0.96261076]
[1767896464625,0.98501621,3128.0,3126.9,0.96261076]
[1767896466599,0.96376851,3127.8,3126.9,0.96261076]
[1767896466744,0.96376851,3127.8,3126.9,0.001]
[1767896467060,0.96376851,3127.6,3126.9,0.001]
[1767896468854,6.39488408,3127.5,3126.9,0.001]
[1767896469442,6.39488408,3127.5,3126.9,0.93398733]
[1767896469632,3.19744204,3127.5,3126.9,0.93398733]
[1767896469958,3.19944204,3127.5,3126.9,0.93398733]
[1767896471063,0.002,3127.5,3126.9,0.93398733]
[1767896471263,0.74721664,3127.5,3126.9,0.93398733]
[1767896471860,0.74721664,3127.5,3126.9,0.001]
[1767896472651,1.71098515,3127.5,3126.9,0.001]
[1767896472964,0.96376851,3127.2,3126.9,0.001]
[1767896473167,6.39529306,3127.3,3126.9,0.001]
[1767896473468,0.63952931,3127.2,3126.9,0.001]
[1767896474044,1.60329782,3127.2,3126.9,0.001]
[1767896474238,0.96376851,3127.1,3126.3,0.93298733]
[1767896474972,3.1979533,3127.0,3126.3,0.93298733]
[1767896475172,6.3959066,3127.0,3126.3,0.93298733]
[1767896475464,7.19582704,3127.0,3126.3,0.93298733]
[1767896475967,8.15959555,3127.0,3126.1,0.93298733]
[1767896476464,7.19582704,3127.0,3126.1,0.93298733]
[1767896477354,7.19582704,3127.0,3126.2,0.93298733]
[1767896478244,3.99787374,3127.0,3126.2,0.93298733]
[1767896478670,3.19787643,3127.1,3126.3,0.93298733]
[1767896478855,3.19787643,3127.1,3126.3,1.01973014]
[1767896479247,3.19787643,3127.1,3126.4,0.93298733]
[1767896479453,6.39575286,3127.1,3126.4,0.93298733]
[1767896479673,6.39575286,3127.1,3126.2,0.93298733]
[1767896479972,6.39575286,3127.1,3126.3,0.93298733]
[1767896481601,0.96376851,3127.0,3125.9,0.93298733]
[1767896483165,0.96376851,3127.0,3126.2,0.001]
[1767896483566,6.39611116,3126.9,3126.2,0.001]
[1767896483768,7.45188677,3126.9,3126.2,0.93398733]
[1767896484759,4.25383119,3126.9,3126.2,0.93398733]
[1767896485461,7.45188677,3126.9,3126.2,0.93398733]
[1767896488261,0.96376851,3126.7,3125.4,4.13253547]
[1767896488480,0.96376851,3126.7,3125.5,4.21921084]
[1767896488674,0.96376851,3126.5,3125.6,0.93298733]
[1767896489658,6.39713408,3126.4,3125.6,0.93298733]
[1767896489873,3.19856704,3126.4,3125.6,0.93298733]
[1767896491187,3.19851868,3126.5,3125.7,0.93298733]
[1767896491368,3.19851868,3126.5,3125.8,1.35489791]
[1767896491568,6.39703736,3126.5,3125.8,1.35489791]
[1767896491783,6.39680711,3126.6,3125.8,0.93298733]
[1767896491965,7.36057562,3126.6,3125.8,0.93298733]
[1767896495691,6.39680711,3126.6,3125.8,0.93298733]
[1767896495989,6.39680711,3126.6,3126.1,0.001]
[1767896500100,7.31161714,3126.6,3126.1,0.001]
[1767896500302,0.91481003,3126.5,3126.1,0.001]
[1767896501580,7.21186882,3126.6,3125.4,0.99290234]
[1767896501581,0.91481003,3126.3,3125.4,0.99290234]
[1767896501783,4.1135817,3126.2,3125.4,4.19244165]
[1767896502218,4.1135817,3126.2,3125.5,0.99290234]
[1767896502422,3.19869128,3126.3,3125.5,0.99290234]
[1767896502722,4.11350131,3126.3,3125.6,0.41924417]
[1767896502925,0.91481003,3126.2,3125.3,5.11830021]
[1767896503222,0.91481003,3126.2,3125.4,3.19958255]
[1767896503423,0.91481003,3126.2,3125.4,4.19248489]
[1767896503591,0.91481003,3126.2,3125.4,0.99290234]
[1767896503927,4.11366446,3126.2,3125.4,4.19247466]
[1767896504086,4.11366446,3126.2,3125.5,1.41214981]
[1767896504287,6.39770886,3126.2,3125.5,1.41214981]
[1767896504796,3.19885443,3126.2,3125.5,1.41214981]
[1767896506007,3.19885443,3126.2,3125.5,0.99290234]
[1767896506514,6.39770886,3126.2,3125.2,0.99290234]
[1767896506812,6.39770886,3126.2,3125.4,0.99290234]
[1767896507116,3.19885443,3126.2,3125.4,0.99290234]
[1767896507490,3.19871781,3126.3,3125.6,0.99290234]
[1767896507810,6.39743562,3126.3,3125.6,0.99290234]
[1767896507996,6.39713408,3126.4,3125.8,0.001]
[1767896508188,4.09516762,3126.4,3125.8,0.99390234]
[1767896508388,0.002,3126.3,3125.8,0.99390234]
[1767896515714,0.002,3126.3,3125.9,0.99290234]
[1767896516595,0.002,3126.3,3125.8,0.001]
[1767896517212,0.91481003,3126.2,3125.3,1.83190234]
[1767896517398,4.11368402,3126.1,3125.3,0.99290234]
[1767896517708,7.31255801,3126.1,3125.3,0.99290234]
[1767896518534,3.20077101,3126.3,3125.4,0.99290234]
[1767896518719,3.20077101,3126.3,3125.6,0.99290234]
[1767896519159,6.39954202,3126.3,3125.6,0.99290234]
[1767896519630,0.002,3126.3,3125.6,0.99290234]
[1767896521229,0.002,3126.3,3125.9,0.001]
[1767896521417,3.19877167,3126.2,3125.9,0.001]
[1767896521828,4.1135817,3126.2,3125.9,0.001]
[1767896522147,4.1135817,3126.2,3124.8,0.99290234]
[1767896522148,0.91481003,3125.9,3124.8,0.99290234]
[1767896522631,0.91481003,3125.9,3124.8,4.1930982]
[1767896522817,0.91481003,3125.9,3125.0,0.9432507]
[1767896523020,3.20072232,3126.3,3125.5,0.9432507]
[1767896523399,0.73867248,3126.3,3125.5,0.9432507]
[1767896523603,1.70609483,3126.3,3125.5,0.9432507]
[1767896524604,0.96742235,3126.2,3125.5,0.9432507]
[1767896524907,2.86831954,3125.8,3124.9,4.23002492]
[1767896525103,0.96742235,3125.7,3125.0,0.9432507]
[1767896525305,0.96742235,3125.7,3125.0,1.45017034]
[1767896525707,4.16675226,3125.7,3125.0,1.45017034]
[1767896525909,7.32784534,3125.9,3125.0,0.9432507]
[1767896527131,7.32784534,3125.9,3125.0,4.14323063]
[1767896528436,3.19928336,3125.7,3125.0,0.9432507]
[1767896528746,4.12893121,3125.7,3124.8,1.82763715]
[1767896528936,4.12893121,3125.7,3124.9,4.18867058]
[1767896529313,4.12893121,3125.7,3124.9,5.29830027]
[1767896529508,4.12893121,3125.7,3124.9,2.09826684]
[1767896529709,0.92964785,3125.6,3124.9,0.98863715]
[1767896529914,3.19928336,3125.7,3124.9,0.98863715]
[1767896530852,4.12893121,3125.7,3124.9,0.98863715]
[1767896531052,4.12893121,3125.7,3124.9,4.18872376]
[1767896532150,0.92964785,3125.9,3125.1,0.98863715]
[1767896532362,3.19911569,3125.9,3125.2,0.98863715]
[1767896533619,3.1987843,3126.2,3125.3,2.86831954]
[1767896533820,3.1987843,3126.2,3125.4,0.98863715]
[1767896534207,0.92964785,3126.1,3125.4,0.98863715]
[1767896534318,1.73623674,3126.1,3125.4,0.98863715]
[1767896535227,0.92964785,3126.0,3125.2,0.98963715]
[1767896535433,2.86831954,3125.8,3125.2,0.001]
[1767896535626,3.79796739,3125.6,3125.2,0.001]
[1767896536154,4.1290715,3125.6,3125.2,0.001]
[1767896536355,3.19933294,3125.7,3125.2,0.001]
[1767896536521,3.89906297,3125.7,3125.2,0.001]
[1767896540566,0.69973003,3125.7,3125.2,0.001]
[1767896541272,3.89902131,3125.7,3125.2,0.001]
[1767896542078,0.69973003,3125.7,3125.2,0.001]
[1767896542871,3.19877167,3126.2,3125.6,0.98863715]
[1767896543169,0.92964785,3126.2,3125.4,0.98863715]
[1767896543581,0.92964785,3125.8,3125.2,0.001]
[1767896543792,3.79796739,3125.5,3125.2,0.001]
[1767896543963,0.92964785,3125.5,3125.2,0.001]
[1767896544276,3.79796739,3125.7,3125.2,0.001]
[1767896544485,0.92964785,3125.6,3125.2,0.001]
[1767896544778,0.37979674,3125.7,3125.2,0.001]
[1767896545162,4.50876054,3125.7,3125.2,0.001]
[1767896546463,4.50876054,3125.7,3125.5,0.001]
[1767896546883,3.79796739,3125.6,3125.2,0.001]
[1767896547065,1.0576396,3125.5,3125.2,0.001]
[1767896547267,5.18682619,3125.5,3125.2,0.001]
[1767896547464,0.92964785,3125.5,3125.2,0.001]
[1767896548990,0.92964785,3125.4,3124.6,0.98863715]
[1767896549151,6.39898564,3125.5,3123.8,6.39]
[1767896549152,2.86831954,3124.9,3123.9,0.98863715]
[1767896549356,3.79796739,3124.9,3124.1,0.98863715]
[1767896549557,1.94944459,3124.9,3124.1,0.98863715]
[1767896551178,3.20020481,3124.8,3124.1,0.98863715]
[1767896551375,4.12985266,3124.8,3123.9,6.99614872]
[1767896551580,0.92964785,3124.7,3123.9,1.82863715]
[1767896551904,0.92964785,3124.4,3123.5,1.07537996]
[1767896552193,0.92964785,3124.6,3123.7,0.98863715]
[1767896552757,0.92964785,3124.6,3123.7,4.18996711]
[1767896553259,4.15632204,3124.5,3123.7,0.98863715]
[1767896553461,7.35683412,3124.5,3123.7,0.98863715]
[1767896553685,4.15632204,3124.5,3123.7,0.98863715]
[1767896553881,5.17882958,3124.5,3123.7,0.98863715]
[1767896554464,8.37934166,3124.5,3123.7,0.98863715]
[1767896554664,0.95580996,3124.4,3123.7,0.98863715]
[1767896554864,0.95580996,3124.4,3123.5,3.79506235]
[1767896555064,0.95580996,3124.4,3123.6,0.90760411]
[1767896555265,4.99441005,3124.4,3123.6,4.10901131]
[1767896555579,4.99441005,3124.4,3123.6,0.90760411]
[1767896556089,0.83793417,3124.4,3123.7,0.90760411]
[1767896556386,4.2230235,3124.5,3123.8,0.90760411]
[1767896556864,5.17883346,3124.5,3123.8,0.90760411]
[1767896558763,5.17883346,3124.5,3124.1,0.001]
[1767896561578,0.95580996,3124.2,3123.4,0.90760411]
[1767896561794,0.38241295,3124.1,3123.5,3.20152251]
[1767896562100,0.95580996,3124.2,3123.5,4.10912662]
[1767896562267,4.15645746,3124.4,3123.5,4.10912662]
[1767896563674,4.15645746,3124.4,3123.6,0.90760411]
[1767896563875,4.15645746,3124.4,3123.7,0.90760411]
[1767896563876,0.95580996,3124.4,3123.7,0.90760411]
[1767896564101,7.35697431,3124.5,3123.8,0.90760411]
[1767896564411,7.35697431,3124.5,3123.6,0.90760411]
[1767896564412,0.95580996,3124.4,3123.6,0.90760411]
[1767896564622,0.95580996,3124.3,3123.4,0.90760411]
[1767896564832,0.95399693,3124.3,3123.4,0.90760411]
[1767896565109,0.95399693,3124.3,3123.4,1.37787076]
[1767896565608,0.95399693,3124.3,3123.4,4.10917919]
[1767896565774,0.95399693,3124.3,3123.5,4.1091224]
[1767896565970,4.15479159,3124.3,3123.6,0.90760411]
[1767896567374,3.20079466,3124.3,3123.6,0.90760411]
[1767896568083,4.15642447,3124.4,3123.6,0.90760411]
[1767896568286,0.95580996,3124.3,3123.6,0.90760411]
[1767896568591,0.95580996,3124.2,3123.4,0.90760411]
[1767896569512,2.86831954,3124.3,3123.4,0.90760411]
[1767896569677,0.95580996,3124.3,3123.4,0.90760411]
[1767896570380,3.2008194,3124.2,3123.4,0.90760411]
[1767896570579,6.4016388,3124.2,3123.4,0.90760411]
[1767896570912,2.86831954,3123.9,3123.2,0.90760411]
[1767896571118,0.95580996,3124.0,3123.9,0.001]
[1767896571277,0.95580996,3124.0,3123.1,3.20189604]
[1767896571610,0.95580996,3124.0,3123.0,4.04200586]
[1767896571808,0.95580996,3124.0,3123.1,0.90760411]
[1767896572035,2.06218655,3124.0,3123.1,0.90760411]
[1767896572181,2.06218655,3124.0,3123.2,3.20183183]
[1767896572492,3.20112679,3123.9,3123.1,4.10950136]
[1767896573012,7.02525629,3123.9,3123.1,0.90760411]
[1767896573782,7.02525629,3123.9,3123.1,4.10950584]
[1767896574304,7.02525629,3123.9,3123.1,0.90760411]
[1767896574687,7.02525629,3123.9,3123.1,4.10950199]
[1767896576123,3.8241295,3123.9,3123.1,4.10950199]
[1767896576307,0.95580996,3123.9,3123.1,4.93332861]
[1767896576508,3.20108288,3124.0,3123.2,0.90760411]
[1767896576707,7.02510382,3124.1,3123.2,0.90760411]
[1767896577432,7.02510382,3124.1,3122.7,3.29007914]
[1767896577433,0.95580996,3124.0,3122.8,0.99434692]
[1767896577591,2.86831954,3123.8,3122.9,0.99434692]
[1767896577794,0.95580996,3123.9,3123.1,0.90760411]
[1767896578098,0.81957562,3124.0,3123.1,0.90760411]
[1767896578423,0.81957562,3124.0,3123.1,0.99434692]
[1767896578830,0.81957562,3124.0,3123.0,4.10963955]
[1767896578831,0.95580996,3123.9,3123.0,4.10963955]
[1767896579044,4.64370512,3124.0,3123.1,0.99434692]
[1767896579397,2.86831954,3123.8,3123.1,0.90760411]
[1767896579729,6.40225358,3123.9,3123.1,0.90760411]
[1767896579924,3.20112679,3123.9,3123.1,0.90760411]
[1767896580123,6.40225358,3123.9,3123.1,0.90760411]
[1767896580322,4.30572266,3123.9,3123.1,0.90760411]
[1767896581026,4.30572266,3123.9,3123.1,4.10953478]
[1767896581239,3.20112679,3123.9,3123.3,0.90760411]
[1767896581399,6.4016388,3124.2,3123.3,0.90760411]
[1767896581743,3.2008194,3124.2,3123.4,0.90760411]
[1767896581894,3.20076113,3124.3,3123.8,0.90760411]
[1767896582095,3.92489519,3124.3,3123.8,0.90760411]
[1767896582299,3.20066332,3124.4,3123.8,0.90760411]
[1767896583636,0.94553767,3124.6,3123.8,4.10880163]
[1767896583837,3.2004432,3124.6,3123.9,0.9762708]
[1767896585533,3.20030791,3124.7,3123.9,0.9762708]
[1767896586035,3.20013594,3124.9,3124.0,0.9762708]
[1767896586229,3.6987033,3124.9,3124.0,0.9762708]
[1767896586754,3.6987033,3124.9,3124.1,0.9762708]
[1767896586755,3.20013594,3124.9,3124.1,0.9762708]
[1767896586937,3.20013594,3124.9,3124.1,1.06301361]
[1767896587120,6.40027188,3124.9,3124.1,1.06301361]
[1767896587320,3.20013594,3124.9,3124.1,1.06301361]
[1767896587515,3.20002419,3125.0,3124.1,1.06301361]
[1767896587729,6.81460457,3125.0,3124.1,1.06301361]
[1767896589647,7.76014224,3125.0,3124.1,1.06301361]
[1767896591640,3.19971547,3125.3,3124.3,1.08050934]
[1767896591641,3.19981412,3125.2,3124.3,1.08050934]
[1767896591818,3.1997612,3125.3,3124.5,0.99376653]
[1767896592017,6.3995224,3125.3,3124.5,0.99376653]
[1767896592218,0.94892646,3125.2,3124.3,1.08050934]
[1767896592419,0.94892646,3125.2,3124.4,0.99376653]
[1767896593023,0.94892646,3125.2,3124.5,0.99376653]
[1767896593642,3.1998976,3125.1,3124.5,0.99376653]
[1767896593853,3.1998976,3125.1,3124.4,0.84]
[1767896594344,3.1998976,3125.1,3124.4,1.83376653]
[1767896594551,3.1998976,3125.1,3124.4,2.08953493]
[1767896595354,6.3997952,3125.1,3124.4,2.08953493]
[1767896595551,3.1998976,3125.1,3124.4,2.08953493]
[1767896595761,0.002,3124.8,3124.4,2.08953493]
[1767896598554,0.002,3124.8,3124.5,0.99376653]
[1767896598762,0.002,3125.1,3124.6,1.52278125]
[1767896599261,0.002,3125.1,3124.4,2.08953493]
[1767896599866,0.002,3125.1,3124.5,0.99376653]
[1767896604974,0.002,3125.1,3124.5,0.84]
[1767896606151,0.002,3125.1,3124.5,3.2005048]
[1767896606352,0.002,3125.1,3124.5,5.03427133]
[1767896606556,0.002,3125.1,3124.5,5.57194958]
[1767896607088,0.002,3125.1,3124.6,0.99376653]
[1767896608174,0.94892646,3126.1,3125.1,0.99376653]
[1767896608370,0.94892646,3126.1,3125.2,0.99376653]
[1767896608571,0.94892646,3126.1,3125.3,1.08050934]
[1767896609314,4.14784672,3126.1,3125.4,0.99376653]
[1767896609451,3.19892026,3126.1,3125.4,0.99376653]
[1767896612462,7.31970655,3126.1,3125.4,0.99376653]
[1767896612662,0.92186603,3126.0,3125.3,0.20072522]
[1767896613698,4.12088846,3126.0,3125.3,1.11103863]
[1767896613866,4.12088846,3126.0,3125.4,0.51508198]
[1767896620069,3.19902243,3126.0,3125.4,1.42539539]
[1767896621303,3.19902243,3126.0,3125.4,0.51508198]
[1767896621304,0.92186603,3125.9,3125.4,0.51508198]
[1767896621463,4.12096163,3125.9,3125.3,1.04072522]
[1767896622697,0.002,3125.7,3125.3,1.04072522]
[1767896623794,3.20101517,3126.0,3125.4,0.91031341]
[1767896623795,0.002,3126.0,3125.4,0.91031341]
[1767896624202,0.002,3126.3,3125.8,0.91031341]
[1767896624401,0.92386603,3126.4,3125.8,0.84]
[1767896624711,0.92386603,3126.4,3125.9,0.18370562]
[1767896625497,0.92386603,3126.4,3126.0,6.39795264]
[1767896625498,0.002,3126.4,3126.0,6.39795264]
[1767896625877,0.002,3126.4,3126.0,3.19897632]
[1767896626499,0.002,3126.4,3126.0,4.10928973]
[1767896627502,0.002,3126.4,3126.1,0.91031341]
[1767896627702,0.002,3126.4,3126.2,0.41092897]
[1767896628986,0.002,3126.4,3126.2,4.51999048]
[1767896629386,0.002,3126.6,3126.2,4.51999048]
[1767896629387,0.002,3126.6,3126.2,1.32124238]
[1767896629778,0.002,3126.6,3126.2,4.52000085]
[1767896630480,0.002,3126.6,3126.3,0.91031341]
[1767896630799,0.92186603,3127.1,3126.4,1.3623135]
[1767896631372,0.92386603,3127.3,3126.5,0.99705622]
[1767896631587,0.002,3127.3,3126.5,0.99705622]
[1767896631837,0.002,3127.3,3126.6,0.91031341]
[1767896634612,0.002,3127.3,3126.9,0.91031341]
[1767896634813,0.002,3127.3,3127.0,0.91031341]
[1767896635107,0.002,3127.3,3127.1,0.17493134]
[1767896636718,0.002,3127.5,3127.2,0.91031341]
[1767896636904,0.002,3127.8,3127.1,0.17493134]
[1767896636905,0.92386603,3127.8,3127.1,0.17493134]
[1767896637093,0.92186603,3127.7,3127.1,0.17493134]
[1767896637601,0.92186603,3127.7,3127.1,3.37278196]
[1767896637789,0.92186603,3127.7,3127.2,0.34595248]
[1767896637995,0.92186603,3127.7,3127.1,0.17493134]
[1767896639500,4.11911819,3127.7,3127.1,0.17493134]
[1767896640103,0.92186603,3127.6,3127.1,0.17493134]
[1767896641204,0.92186603,3127.6,3126.9,0.839]
[1767896641516,0.92186603,3127.6,3126.9,4.03703369]
[1767896641910,0.92186603,3127.5,3126.9,0.839]
[1767896642110,3.197354,3127.6,3126.9,0.839]
[1767896642312,3.197354,3127.6,3126.9,1.74931341]
[1767896642616,3.197354,3127.6,3126.9,2.56388254]
[1767896642913,6.394708,3127.6,3126.9,2.56388254]
[1767896643211,3.197354,3127.6,3126.9,1.74931341]
[1767896643413,3.197354,3127.6,3126.9,0.91031341]
[1767896643584,0.002,3127.8,3127.2,0.93974083]
[1767896643783,3.19795139,3129.0,3127.1,2.87107662]
[1767896643784,0.92820314,3128.3,3127.4,2.87107662]
[1767896644018,0.92820314,3128.3,3127.5,0.839]
[1767896644188,0.92820314,3128.1,3127.5,0.839]
[1767896645509,4.13257813,3128.5,3127.6,4.15795684]
[1767896645689,0.93610462,3128.4,3127.6,0.96070334]
[1767896646018,6.39294702,3128.5,3127.7,0.96070334]
[1767896646713,7.32905164,3128.5,3127.7,0.96070334]
[1767896646913,7.32905164,3128.5,3127.7,1.75548886]
[1767896648114,2.86400878,3128.2,3127.7,0.79478552]
[1767896648315,3.8001134,3128.2,3127.5,0.839]
[1767896648611,0.93610462,3128.2,3127.5,0.839]
[1767896649017,0.002,3128.2,3127.5,4.99707997]
[1767896649211,0.002,3128.2,3127.5,5.08382278]
[1767896649399,0.002,3128.2,3127.5,1.88644615]
[1767896649596,0.002,3128.2,3127.9,0.96070334]
[1767896649798,0.002,3128.5,3127.9,1.04744615]
[1767896650002,0.002,3128.5,3127.9,1.88644615]
[1767896652203,0.002,3128.5,3127.9,1.04744615]
[1767896652400,0.002,3128.5,3127.9,1.88644615]
[1767896652593,0.002,3128.5,3128.0,0.18864462]
[1767896655519,0.93810462,3128.5,3128.0,0.18864462]
[1767896655726,0.93810462,3128.5,3127.9,0.839]
[1767896656433,3.19652218,3128.4,3127.8,0.839]
[1767896656929,6.39304436,3128.4,3127.7,0.96070334]
[1767896657099,4.1326268,3128.4,3127.7,0.96070334]
[1767896657630,7.32914898,3128.4,3127.7,0.96070334]
[1767896658201,7.32914898,3128.4,3127.6,0.839]
[1767896658828,7.32914898,3128.4,3127.6,1.79970334]
[1767896659149,0.93610462,3128.2,3127.1,3.19779375]
[1767896659298,8.34886476,3128.4,3127.7,2.86400878]
[1767896659499,7.41276014,3128.4,3127.7,3.82471212]
[1767896659699,7.41276014,3128.4,3127.7,0.96070334]
[1767896660717,4.21623796,3128.4,3127.7,0.96070334]
[1767896660921,3.19652218,3128.4,3127.7,0.96070334]
[1767896662299,0.002,3128.2,3127.7,0.96070334]
[1767896663237,3.8001134,3128.1,3127.3,0.08674281]
[1767896663403,3.8001134,3127.7,3126.8,4.24553981]
[1767896663726,0.93610462,3127.4,3126.8,0.839]
[1767896665106,0.93610462,3127.3,3126.8,0.839]
[1767896665927,0.93610462,3127.5,3126.6,3.28508535]
[1767896666127,0.93610462,3127.5,3126.7,4.03722054]
[1767896666440,0.93610462,3127.5,3126.8,3.19814297]
[1767896666646,3.1973856,3127.6,3126.7,4.03720064]
[1767896667048,3.1973856,3127.6,3126.8,3.19814205]
[1767896667248,7.33087582,3127.6,3126.7,0.839]
[1767896667430,1.01948846,3127.5,3126.7,0.839]
[1767896667744,1.01948846,3127.5,3126.7,4.03725534]
[1767896668145,0.93610462,3127.4,3126.6,0.71965403]
[1767896668349,0.93610462,3127.4,3126.7,0.839]
[1767896670046,3.19764653,3127.3,3126.7,0.839]
[1767896670621,4.13369349,3127.4,3126.7,0.839]
[1767896672341,5.12530307,3127.4,3126.7,0.839]
[1767896673418,5.12530307,3127.4,3126.6,4.16030465]
[1767896673616,8.32289194,3127.4,3126.6,0.96195559]
[1767896673821,0.95483107,3127.0,3126.2,1.0486984]
[1767896674126,0.38188399,3127.0,3126.3,4.99961462]
[1767896674325,3.19790434,3127.1,3126.3,4.99961462]
[1767896674938,4.18917758,3127.4,3127.0,0.001]
[1767896675136,3.197568,3127.4,3127.0,0.001]
[1767896676027,6.395136,3127.4,3127.0,0.001]
[1767896679257,7.34996707,3127.4,3127.0,0.001]
[1767896681033,0.95483107,3127.3,3127.0,0.001]
[1767896681234,0.95483107,3127.1,3126.5,0.839]
[1767896682057,0.73499671,3127.2,3126.5,0.839]
[1767896682257,3.19774878,3127.2,3126.5,0.839]
[1767896684943,7.01652695,3127.3,3126.5,4.99939551]
[1767896685165,3.1976871,3127.3,3126.6,0.96195559]
[1767896687361,3.19754428,3127.4,3126.6,0.96195559]
[1767896687561,6.39508856,3127.4,3126.6,0.96195559]
[1767896688643,6.39508856,3127.4,3126.8,0.001]
[1767896688864,7.4164814,3127.4,3126.8,0.001]
[1767896689167,11.23532125,3127.4,3126.8,0.001]
[1767896689672,0.95483107,3127.3,3126.8,0.001]
[1767896689869,2.86400878,3127.0,3126.6,0.839]
[1767896690672,0.95483107,3127.1,3126.6,0.839]
[1767896690972,3.1979533,3127.0,3126.6,0.839]
[1767896691977,0.95483107,3126.9,3124.8,0.001]
[1767896692270,0.95483107,3126.7,3124.9,1.0486984]
[1767896692473,0.95483107,3126.2,3125.2,0.96195559]
[1767896692674,3.81883985,3126.2,3125.2,0.96195559]
[1767896692858,6.39795264,3126.0,3125.2,0.96195559]
[1767896693373,3.19897632,3126.0,3125.2,0.96195559]
[1767896694247,0.95483107,3125.9,3120.3,9.05198037]
[1767896694577,0.16693827,3123.5,3122.4,0.08674281]
[1767896694775,6.23257501,3123.5,3122.4,0.08674281]
[1767896694967,10.47308374,3123.5,3122.4,0.08674281]
[1767896695165,7.60907496,3123.5,3122.4,0.08674281]
[1767896695482,4.407447,3123.5,3122.4,3.28940465]
[1767896695771,4.407447,3123.5,3122.4,0.08674281]
[1767896695975,4.407447,3123.5,3122.4,3.28940695]
[1767896696470,7.60907496,3123.5,3122.4,3.28940695]
[1767896696771,4.407447,3123.5,3122.4,7.45402715]
[1767896696971,5.24637331,3123.5,3122.6,0.08004867]
[1767896698445,0.95483107,3123.4,3122.2,0.08674281]
[1767896698652,0.95483107,3123.4,3121.4,4.23927256]
[1767896698653,0.95483107,3122.7,3121.4,4.23927256]
[1767896698876,3.20266461,3122.4,3121.4,1.03560037]
[1767896699278,3.20266461,3122.4,3121.4,4.23927877]
[1767896699454,3.20266461,3122.4,3121.4,4.99096246]
[1767896700388,0.84,3122.5,3121.8,0.06726673]
[1767896700678,4.15657281,3123.3,3122.0,0.06726673]
[1767896700880,4.15677785,3123.1,3122.0,0.06726673]
[1767896701063,0.41567779,3123.0,3122.0,0.06726673]
[1767896701877,0.41567779,3123.0,3121.8,1.02922232]
[1767896702055,1.37050886,3123.0,3121.8,4.23249067]
[1767896702983,6.40430368,3122.9,3121.8,4.23249067]
[1767896703978,1.37050886,3123.0,3121.8,4.23249067]
[1767896703979,0.41567779,3123.0,3122.1,0.92218059]
[1767896704183,6.40307346,3123.5,3122.4,0.06726673]
[1767896704400,0.84,3123.3,3122.4,0.06726673]
[1767896704885,0.84,3123.3,3122.4,0.98944732]
[1767896705068,3.20178328,3123.3,3122.4,4.19204921]
[1767896705389,0.84,3123.3,3122.4,1.73566023]
[1767896706081,0.84,3123.3,3122.4,4.93831694]
[1767896706487,0.84,3123.3,3122.4,1.73566023]
[1767896706856,0.84,3123.3,3122.4,0.98944732]
[1767896707385,3.20184426,3123.2,3122.4,0.98944732]
[1767896707978,6.40368852,3123.2,3122.4,0.98944732]
[1767896708182,3.20184426,3123.2,3122.4,0.98944732]
[1767896708881,3.20184426,3123.2,3122.4,4.19210829]
[1767896709191,3.20184426,3123.2,3122.4,0.98944732]
[1767896709355,6.40368852,3123.2,3122.4,0.98944732]
[1767896709555,3.20184426,3123.2,3122.4,4.19209206]
[1767896710086,4.04177762,3123.3,3122.6,0.06726673]
[1767896710584,0.94035594,3123.7,3122.6,0.91111303]
[1767896710790,0.84,3123.6,3122.7,0.97837976]
[1767896711093,9.6024582,3124.2,3122.7,0.97837976]
[1767896711094,0.94035594,3124.0,3122.7,0.97837976]
[1767896711298,0.84,3123.9,3122.7,0.97837976]
[1767896711464,0.17803559,3123.8,3122.9,0.97837976]
[1767896711667,3.37929612,3123.8,3123.0,0.91111303]
[1767896712399,6.58055665,3123.8,3123.0,0.91111303]
[1767896713194,6.58055665,3123.8,3122.9,0.06726673]
[1767896713981,0.002,3123.4,3122.9,0.06726673]
[1767896715309,0.002,3123.4,3122.9,0.49205454]
[1767896715472,0.002,3123.4,3122.9,4.60528111]
[1767896715671,0.002,3123.4,3122.9,1.40316757]
[1767896716568,0.002,3123.7,3122.9,1.40316757]
[1767896717803,0.002,3123.7,3122.9,0.97837976]
[1767896717998,0.94235594,3123.7,3122.5,0.06726673]
[1767896718369,0.94035594,3123.5,3122.5,0.06726673]
[1767896718591,0.94035594,3123.3,3122.4,3.20265785]
[1767896718788,0.94035594,3123.3,3122.5,3.20255665]
[1767896719100,1.11839153,3123.3,3122.5,3.20255665]
[1767896719779,0.17803559,3123.3,3122.5,4.11366968]
[1767896720300,0.17803559,3123.3,3122.6,0.91111303]
[1767896720515,3.37985153,3123.3,3122.6,0.91111303]
[1767896721608,3.37985153,3123.3,3122.6,4.11354342]
[1767896721977,0.17803559,3123.3,3122.6,4.11354342]
[1767896722809,4.98192912,3123.5,3122.6,4.11354342]
[1767896723578,3.20152815,3123.6,3122.9,0.91111303]
[1767896724106,0.94035594,3123.5,3122.3,0.91111303]
[1767896724291,0.94035594,3123.5,3122.4,4.11370992]
[1767896724475,0.94035594,3123.5,3122.4,0.91111303]
[1767896724674,0.94035594,3123.3,3122.4,0.91111303]
[1767896724875,3.20184426,3123.2,3122.4,4.11375938]